[Event "*** Titled Tuesday Blitz"]
[Site "Chess.com"]
[Date "2020.05.05"]
[Round "1"]
[White "ChessBitl"]
[Black "AwareIdea"]
[Result "0-1"]
[WhiteElo "2271"]
[BlackElo "2600"]
[TimeControl "180+1"]
[EndTime "10:08:12 PDT"]
[Termination "AwareIdea won by resignation"]

1. e4 {[%clk 0:02:53.4]} 1... e5 {[%clk 0:02:59.7]} 2. Nf3 {[%clk 0:02:52.8]}
2... Nc6 {[%clk 0:02:59.4]} 3. d4 {[%clk 0:02:53.4]} 3... exd4 {[%clk
0:02:56.4]} 4. Bc4 {[%clk 0:02:53.8]} 4... Bc5 {[%clk 0:02:55.8]} 5. c3 {[%clk
0:02:50.9]} 5... Nf6 {[%clk 0:02:54.1]} 6. O-O {[%clk 0:02:45.9]} 6... Nxe4
{[%clk 0:02:49.2]} 7. cxd4 {[%clk 0:02:40.1]} 7... d5 {[%clk 0:02:46.5]} 8. dxc5
{[%clk 0:02:16.6]} 8... dxc4 {[%clk 0:02:46]} 9. Qe2 {[%clk 0:02:16.9]} 9... Qd3
{[%clk 0:02:43.5]} 10. Re1 {[%clk 0:02:16.6]} 10... f5 {[%clk 0:02:34]} 11. Nc3
{[%clk 0:02:14.8]} 11... O-O {[%clk 0:02:17]} 12. Nxe4 {[%clk 0:02:13]} 12...
fxe4 {[%clk 0:02:11]} 13. Qxe4 {[%clk 0:02:12.1]} 13... Bf5 {[%clk 0:02:07.7]}
14. Qxd3 {[%clk 0:02:11.6]} 14... cxd3 {[%clk 0:02:04.8]} 15. Be3 {[%clk
0:02:08.9]} 15... h6 {[%clk 0:02:00.7]} 16. h3 {[%clk 0:02:04.6]} 16... Bxh3
{[%clk 0:01:46.9]} 17. gxh3 {[%clk 0:01:57.1]} 17... Rxf3 {[%clk 0:01:46.4]} 18.
Kg2 {[%clk 0:01:57.3]} 18... Rf7 {[%clk 0:01:45]} 19. Rad1 {[%clk 0:01:53.4]}
19... Rd8 {[%clk 0:01:44.2]} 20. b3 {[%clk 0:01:47.5]} 20... Rd5 {[%clk
0:01:42.1]} 21. Rd2 {[%clk 0:01:37.7]} 21... Ne5 {[%clk 0:01:23.7]} 22. f4
{[%clk 0:01:37.1]} 22... Ng6 {[%clk 0:01:16.9]} 23. Kg3 {[%clk 0:01:34.7]} 23...
Ne7 {[%clk 0:01:11.8]} 24. Red1 {[%clk 0:01:26.4]} 24... Nf5+ {[%clk 0:01:02.6]}
25. Kf3 {[%clk 0:01:26.4]} 25... Nxe3 {[%clk 0:00:50.5]} 26. Kxe3 {[%clk
0:01:26.3]} 26... Rxc5 {[%clk 0:00:45.6]} 27. Rxd3 {[%clk 0:01:26.5]} 27... Rh5
{[%clk 0:00:45.6]} 28. Ke4 {[%clk 0:01:12.5]} 28... Re7+ {[%clk 0:00:42.5]} 29.
Kd4 {[%clk 0:01:12.7]} 29... Rh4 {[%clk 0:00:37]} 30. Rf1 {[%clk 0:00:53.3]}
30... Rd7+ {[%clk 0:00:35.4]} 31. Kc3 {[%clk 0:00:53.1]} 31... Rxd3+ {[%clk
0:00:36.3]} 32. Kxd3 {[%clk 0:00:53.4]} 32... Rxh3+ {[%clk 0:00:37.2]} 33. Ke4
{[%clk 0:00:52.5]} 33... Kf7 {[%clk 0:00:34.1]} 34. Rf2 {[%clk 0:00:47.3]} 34...
Ke7 {[%clk 0:00:29.5]} 35. Kf5 {[%clk 0:00:44.8]} 35... Rg3 {[%clk 0:00:28.2]}
36. Re2+ {[%clk 0:00:42]} 36... Kf7 {[%clk 0:00:28]} 37. Rc2 {[%clk 0:00:41.9]}
37... c6 {[%clk 0:00:27]} 38. Rd2 {[%clk 0:00:42.1]} 38... g6+ {[%clk
0:00:26.8]} 39. Ke4 {[%clk 0:00:41.1]} 39... Ke7 {[%clk 0:00:27.5]} 40. Re2
{[%clk 0:00:35.2]} 40... h5 {[%clk 0:00:21.8]} 41. Ke5 {[%clk 0:00:35.1]} 41...
h4 {[%clk 0:00:20.9]} 42. b4 {[%clk 0:00:25.7]} 42... h3 {[%clk 0:00:19.3]} 43.
f5 {[%clk 0:00:25.9]} 43... Rg2 {[%clk 0:00:16.2]} 44. Re1 {[%clk 0:00:20.2]}
44... gxf5 {[%clk 0:00:14.9]} 45. Kxf5+ {[%clk 0:00:19.3]} 45... Kd6 {[%clk
0:00:15.1]} 46. Rd1+ {[%clk 0:00:18.7]} 46... Kc7 {[%clk 0:00:15]} 47. Re1
{[%clk 0:00:18.4]} 47... Rxa2 {[%clk 0:00:13.1]} 48. Re3 {[%clk 0:00:14.4]}
48... h2 {[%clk 0:00:12.3]} 49. Rh3 {[%clk 0:00:13]} 49... Kb6 {[%clk
0:00:12.6]} 50. Ke6 {[%clk 0:00:09.8]} 50... Ra4 {[%clk 0:00:12]} 51. Rh4 {[%clk
0:00:09.9]} 51... h1=Q {[%clk 0:00:10.1]} 52. Rxh1 {[%clk 0:00:08.8]} 52... Rxb4
{[%clk 0:00:10.5]} 0-1

[Event "*** Titled Tuesday Blitz"]
[Site "Chess.com"]
[Date "2020.05.05"]
[Round "1"]
[White "fabianvivasz"]
[Black "afgano29"]
[Result "0-1"]
[WhiteElo "2359"]
[BlackElo "2702"]
[TimeControl "180+1"]
[EndTime "10:08:14 PDT"]
[Termination "afgano29 won by resignation"]

1. e4 {[%clk 0:02:59.9]} 1... c5 {[%clk 0:02:59.6]} 2. Nf3 {[%clk 0:03:00]} 2...
Nc6 {[%clk 0:02:59.8]} 3. d4 {[%clk 0:02:57.5]} 3... cxd4 {[%clk 0:02:59.9]} 4.
Nxd4 {[%clk 0:02:58.4]} 4... e5 {[%clk 0:03:00.3]} 5. Nb5 {[%clk 0:02:58.1]}
5... d6 {[%clk 0:03:00.4]} 6. N1c3 {[%clk 0:02:56.3]} 6... a6 {[%clk 0:03:00.9]}
7. Na3 {[%clk 0:02:56.4]} 7... b5 {[%clk 0:03:01]} 8. Nd5 {[%clk 0:02:55.6]}
8... Nce7 {[%clk 0:03:01.5]} 9. c4 {[%clk 0:02:47.7]} 9... Nxd5 {[%clk
0:03:01.3]} 10. Qxd5 {[%clk 0:02:40.8]} 10... Be6 {[%clk 0:03:01.2]} 11. Qc6+
{[%clk 0:02:38.1]} 11... Bd7 {[%clk 0:03:01.2]} 12. Qd5 {[%clk 0:02:36.8]} 12...
Nf6 {[%clk 0:03:01.5]} 13. Qd3 {[%clk 0:02:37.1]} 13... Bc6 {[%clk 0:02:49]} 14.
cxb5 {[%clk 0:02:28.8]} 14... Bxe4 {[%clk 0:02:47.6]} 15. Qb3 {[%clk 0:02:28.8]}
15... Be7 {[%clk 0:02:44]} 16. bxa6 {[%clk 0:02:17.9]} 16... O-O {[%clk
0:02:43.6]} 17. f3 {[%clk 0:02:11]} 17... Bd5 {[%clk 0:02:36.2]} 18. Bc4 {[%clk
0:02:11.4]} 18... Bxc4 {[%clk 0:02:24.9]} 19. Qxc4 {[%clk 0:02:12.3]} 19... d5
{[%clk 0:02:24.1]} 20. Qe2 {[%clk 0:02:11]} 20... Bxa3 {[%clk 0:02:20.2]} 21.
bxa3 {[%clk 0:02:11.9]} 21... Qa5+ {[%clk 0:02:18.8]} 22. Bd2 {[%clk 0:02:06.3]}
22... Qxa6 {[%clk 0:02:18.8]} 23. Qxa6 {[%clk 0:02:04.3]} 23... Rxa6 {[%clk
0:02:19.7]} 24. Bb4 {[%clk 0:02:04.9]} 24... Rd8 {[%clk 0:02:15.5]} 25. Kd2
{[%clk 0:02:00.4]} 25... d4 {[%clk 0:02:14]} 26. Rhe1 {[%clk 0:01:57.5]} 26...
Re6 {[%clk 0:02:12.8]} 27. Rac1 {[%clk 0:01:56.1]} 27... Nd5 {[%clk 0:02:12.3]}
28. Rc5 {[%clk 0:01:55.1]} 28... f6 {[%clk 0:02:07.3]} 29. g3 {[%clk 0:01:51.9]}
29... Ra6 {[%clk 0:02:06.6]} 30. Ba5 {[%clk 0:01:45.7]} 30... Rd7 {[%clk
0:01:59.2]} 31. Rb1 {[%clk 0:01:44.1]} 31... Kf7 {[%clk 0:01:56.3]} 32. Rbb5
{[%clk 0:01:39.6]} 32... Ne3 {[%clk 0:01:54]} 33. Kd3 {[%clk 0:01:33.9]} 33...
Nf1 {[%clk 0:01:50]} 34. Rb2 {[%clk 0:00:56.9]} 34... Ne3 {[%clk 0:01:40.8]} 35.
Rb8 {[%clk 0:00:50.9]} 35... h5 {[%clk 0:01:32.7]} 36. Bb4 {[%clk 0:00:37.3]}
36... Nd5 {[%clk 0:01:28.1]} 37. Ba5 {[%clk 0:00:30.4]} 37... Kg6 {[%clk
0:01:26.7]} 38. Ke4 {[%clk 0:00:24.8]} 38... Ne7 {[%clk 0:01:16.6]} 39. Kd3
{[%clk 0:00:17.1]} 39... Nc6 {[%clk 0:01:11.9]} 40. Rbb5 {[%clk 0:00:12.7]}
40... Rda7 {[%clk 0:01:05.2]} 41. Bb6 {[%clk 0:00:12.7]} 41... Rxa3+ {[%clk
0:01:03]} 42. Ke4 {[%clk 0:00:12.1]} 42... Re3+ {[%clk 0:00:54.7]} 43. Kd5
{[%clk 0:00:12.4]} 43... Ne7+ {[%clk 0:00:53.8]} 44. Ke6 {[%clk 0:00:12.3]}
44... Rb7 {[%clk 0:00:52.3]} 45. a4 {[%clk 0:00:08.3]} 45... d3 {[%clk
0:00:39.7]} 46. a5 {[%clk 0:00:06.8]} 46... d2 {[%clk 0:00:38.7]} 47. Rd5 {[%clk
0:00:05.9]} 47... Nxd5 {[%clk 0:00:38.3]} 48. Rxd5 {[%clk 0:00:06.8]} 48... Re2
{[%clk 0:00:34.8]} 49. Kd6 {[%clk 0:00:06.4]} 49... Rxh2 {[%clk 0:00:32.8]} 50.
Kc6 {[%clk 0:00:06.1]} 50... Rb8 {[%clk 0:00:31.5]} 51. a6 {[%clk 0:00:06.3]}
51... d1=Q {[%clk 0:00:28.1]} 52. Rxd1 {[%clk 0:00:05.7]} 52... Rc2+ {[%clk
0:00:28.5]} 53. Bc5 {[%clk 0:00:06.1]} 53... Rc8+ {[%clk 0:00:28.7]} 54. Kb7
{[%clk 0:00:05.7]} 54... R2xc5 {[%clk 0:00:29.2]} 55. a7 {[%clk 0:00:05.7]}
55... R5c7+ {[%clk 0:00:29.5]} 56. Kb6 {[%clk 0:00:05.7]} 56... Re7 {[%clk
0:00:28]} 57. Rc1 {[%clk 0:00:02]} 57... Ra8 {[%clk 0:00:26]} 58. Ra1 {[%clk
0:00:02.1]} 58... Raxa7 {[%clk 0:00:26.4]} 59. Rxa7 {[%clk 0:00:01.6]} 59...
Rxa7 {[%clk 0:00:27.3]} 60. Kxa7 {[%clk 0:00:02.5]} 60... Kf5 {[%clk 0:00:27.8]}
0-1

[Event "*** Titled Tuesday Blitz"]
[Site "Chess.com"]
[Date "2020.05.05"]
[Round "1"]
[White "Caterpiller35"]
[Black "tioloko"]
[Result "0-1"]
[WhiteElo "2301"]
[BlackElo "2623"]
[TimeControl "180+1"]
[EndTime "10:08:19 PDT"]
[Termination "tioloko won by resignation"]

1. d4 {[%clk 0:03:00.8]} 1... d5 {[%clk 0:02:59.1]} 2. Bf4 {[%clk 0:02:59.8]}
2... e6 {[%clk 0:02:58.3]} 3. e3 {[%clk 0:02:59.4]} 3... Bd6 {[%clk 0:02:59.2]}
4. Bg3 {[%clk 0:02:59.3]} 4... Ne7 {[%clk 0:02:58.7]} 5. Nf3 {[%clk 0:02:58.6]}
5... c5 {[%clk 0:02:56.9]} 6. c4 {[%clk 0:02:53.2]} 6... O-O {[%clk 0:02:55.6]}
7. Nc3 {[%clk 0:02:52.4]} 7... cxd4 {[%clk 0:02:54.6]} 8. Nxd4 {[%clk 0:02:46]}
8... Nbc6 {[%clk 0:02:52.6]} 9. cxd5 {[%clk 0:02:44]} 9... exd5 {[%clk
0:02:51.2]} 10. Ndb5 {[%clk 0:02:38.8]} 10... Be5 {[%clk 0:02:21.2]} 11. Bd3
{[%clk 0:02:24.7]} 11... a6 {[%clk 0:01:49.8]} 12. Bxe5 {[%clk 0:02:15.3]} 12...
Nxe5 {[%clk 0:01:50.7]} 13. Nd4 {[%clk 0:02:15.1]} 13... Bg4 {[%clk 0:01:43.6]}
14. Be2 {[%clk 0:02:04.7]} 14... Qd7 {[%clk 0:01:37.2]} 15. O-O {[%clk
0:02:02.4]} 15... Rac8 {[%clk 0:01:34.4]} 16. Rc1 {[%clk 0:02:01.9]} 16... Rfd8
{[%clk 0:01:26.7]} 17. Qb3 {[%clk 0:01:50.5]} 17... Bxe2 {[%clk 0:01:25.4]} 18.
Ncxe2 {[%clk 0:01:47.6]} 18... Nc4 {[%clk 0:01:23.5]} 19. Rfd1 {[%clk
0:01:41.2]} 19... b5 {[%clk 0:01:23.3]} 20. Nf4 {[%clk 0:01:36.1]} 20... Ng6
{[%clk 0:01:23.6]} 21. Nxg6 {[%clk 0:01:33.6]} 21... hxg6 {[%clk 0:01:24.5]} 22.
Qb4 {[%clk 0:01:30.7]} 22... Rc7 {[%clk 0:01:19.5]} 23. b3 {[%clk 0:01:28.1]}
23... Ne5 {[%clk 0:01:15.6]} 24. Qa5 {[%clk 0:01:25]} 24... Rdc8 {[%clk
0:00:28.3]} 25. Rxc7 {[%clk 0:01:18.2]} 25... Rxc7 {[%clk 0:00:29.2]} 26. Qxa6
{[%clk 0:01:14.9]} 26... Qg4 {[%clk 0:00:29.7]} 27. f3 {[%clk 0:01:06.4]} 27...
Qg5 {[%clk 0:00:29.7]} 28. Qa8+ {[%clk 0:00:25.1]} 28... Kh7 {[%clk 0:00:26.8]}
29. Qxd5 {[%clk 0:00:26]} 29... Qxe3+ {[%clk 0:00:25.7]} 30. Kh1 {[%clk
0:00:24.9]} 30... Rc1 {[%clk 0:00:25.8]} 31. Ne2 {[%clk 0:00:10.3]} 31... Rxd1+
{[%clk 0:00:24.9]} 32. Qxd1 {[%clk 0:00:09.7]} 32... Nd3 {[%clk 0:00:25.8]} 33.
Qf1 {[%clk 0:00:05.5]} 33... Nf2+ {[%clk 0:00:22]} 34. Kg1 {[%clk 0:00:05.9]}
34... Ne4+ {[%clk 0:00:20]} 35. Kh1 {[%clk 0:00:06]} 35... Nd2 {[%clk
0:00:20.5]} 36. Qd1 {[%clk 0:00:05.9]} 36... b4 {[%clk 0:00:18.5]} 37. Ng3
{[%clk 0:00:05.3]} 37... Qc3 {[%clk 0:00:15.9]} 38. Ne4 {[%clk 0:00:04.4]} 38...
Nxe4 {[%clk 0:00:15.6]} 39. fxe4 {[%clk 0:00:05.3]} 39... Qe3 {[%clk 0:00:16]}
40. Qb1 {[%clk 0:00:04.3]} 40... Qf2 {[%clk 0:00:15.2]} 41. h3 {[%clk
0:00:02.6]} 41... Kh6 {[%clk 0:00:15.7]} 42. Kh2 {[%clk 0:00:02.8]} 42... g5
{[%clk 0:00:16.1]} 43. Qc1 {[%clk 0:00:03.1]} 43... g6 {[%clk 0:00:15.9]} 44.
Qc4 {[%clk 0:00:02.5]} 44... Qf4+ {[%clk 0:00:14.9]} 45. Kg1 {[%clk 0:00:02.6]}
45... Qe3+ {[%clk 0:00:13.9]} 46. Kh2 {[%clk 0:00:02.9]} 46... Qf4+ {[%clk
0:00:11]} 47. Kg1 {[%clk 0:00:02.9]} 47... g4 {[%clk 0:00:10.8]} 48. Qxf7 {[%clk
0:00:02]} 48... Qxf7 {[%clk 0:00:10.2]} 0-1

[Event "*** Titled Tuesday Blitz"]
[Site "Chess.com"]
[Date "2020.05.05"]
[Round "1"]
[White "vladimirdamjanovic"]
[Black "isla88"]
[Result "1-0"]
[WhiteElo "2605"]
[BlackElo "2279"]
[TimeControl "180+1"]
[EndTime "10:08:20 PDT"]
[Termination "vladimirdamjanovic won by resignation"]

1. d4 {[%clk 0:02:55.9]} 1... Nf6 {[%clk 0:02:59.2]} 2. Bf4 {[%clk 0:02:45.9]}
2... d6 {[%clk 0:02:50.9]} 3. Nc3 {[%clk 0:02:41.1]} 3... g6 {[%clk 0:02:45]} 4.
e3 {[%clk 0:02:35.9]} 4... Bg7 {[%clk 0:02:43.9]} 5. h4 {[%clk 0:02:36.5]} 5...
h6 {[%clk 0:02:43.5]} 6. Be2 {[%clk 0:02:34.2]} 6... O-O {[%clk 0:02:41.4]} 7.
Qd2 {[%clk 0:02:33.4]} 7... Nbd7 {[%clk 0:02:33.6]} 8. g4 {[%clk 0:02:28.3]}
8... Ne8 {[%clk 0:02:24.8]} 9. h5 {[%clk 0:02:03.2]} 9... g5 {[%clk 0:02:23.2]}
10. Bg3 {[%clk 0:01:56.8]} 10... e5 {[%clk 0:02:22.5]} 11. Nf3 {[%clk
0:01:43.4]} 11... exd4 {[%clk 0:02:18]} 12. Nxd4 {[%clk 0:01:44.3]} 12... Ne5
{[%clk 0:02:17.3]} 13. f3 {[%clk 0:01:30.2]} 13... c6 {[%clk 0:02:06.2]} 14.
O-O-O {[%clk 0:01:26.6]} 14... Qc7 {[%clk 0:02:00.5]} 15. Rhg1 {[%clk 0:01:08]}
15... b5 {[%clk 0:01:56.9]} 16. f4 {[%clk 0:01:05.6]} 16... Nc4 {[%clk
0:01:32.8]} 17. Bxc4 {[%clk 0:00:55.9]} 17... bxc4 {[%clk 0:01:33.7]} 18. fxg5
{[%clk 0:00:54.6]} 18... hxg5 {[%clk 0:01:33.6]} 19. h6 {[%clk 0:00:50.3]} 19...
Bxh6 {[%clk 0:01:31.5]} 20. Rh1 {[%clk 0:00:46.3]} 20... Bg7 {[%clk 0:01:28.8]}
21. Qh2 {[%clk 0:00:45.1]} 21... Nf6 {[%clk 0:01:26.3]} 22. Bxd6 {[%clk
0:00:41.7]} 22... Qb6 {[%clk 0:01:20.1]} 23. Bxf8 {[%clk 0:00:31.7]} 23... Kxf8
{[%clk 0:01:21]} 24. Qd6+ {[%clk 0:00:20.9]} 24... Kg8 {[%clk 0:01:05.8]} 25.
Na4 {[%clk 0:00:16.6]} 25... Qa5 {[%clk 0:00:58.1]} 26. Nxc6 {[%clk 0:00:10.5]}
26... Ne4 {[%clk 0:00:20.3]} 27. Nxa5 {[%clk 0:00:02.9]} 27... Nxd6 {[%clk
0:00:20.5]} 28. Rxd6 {[%clk 0:00:03.6]} 28... Bxg4 {[%clk 0:00:21.3]} 29. Nc6
{[%clk 0:00:02.6]} 29... Re8 {[%clk 0:00:19.6]} 30. Rd8 {[%clk 0:00:02.2]} 30...
Rxd8 {[%clk 0:00:19.4]} 31. Nxd8 {[%clk 0:00:03.1]} 31... Bf6 {[%clk 0:00:19.8]}
32. Nc6 {[%clk 0:00:03.1]} 32... Bd7 {[%clk 0:00:19.2]} 33. Rf1 {[%clk
0:00:02.8]} 33... Bg7 {[%clk 0:00:18.9]} 34. Ne7+ {[%clk 0:00:02.8]} 34... Kf8
{[%clk 0:00:19.4]} 35. Nc5 {[%clk 0:00:02.4]} 35... Bh3 {[%clk 0:00:17.8]} 36.
Rh1 {[%clk 0:00:02]} 36... Bg4 {[%clk 0:00:16.4]} 37. Nd5 {[%clk 0:00:02.2]}
37... Bf3 {[%clk 0:00:15.1]} 38. Rd1 {[%clk 0:00:01.6]} 38... Bxd1 {[%clk
0:00:14.5]} 39. Kxd1 {[%clk 0:00:02.5]} 39... g4 {[%clk 0:00:15.2]} 40. c3
{[%clk 0:00:02.7]} 40... f5 {[%clk 0:00:14.8]} 41. Nf4 {[%clk 0:00:02.4]} 41...
Kf7 {[%clk 0:00:11.6]} 42. Nce6 {[%clk 0:00:02.3]} 42... Be5 {[%clk 0:00:10.9]}
43. Ke2 {[%clk 0:00:03.2]} 43... a5 {[%clk 0:00:10.5]} 44. a4 {[%clk 0:00:02.8]}
44... Bb8 {[%clk 0:00:09.8]} 45. Nc5 {[%clk 0:00:02.8]} 45... Bc7 {[%clk
0:00:07.4]} 46. Nd7 {[%clk 0:00:03]} 46... Ke7 {[%clk 0:00:05.7]} 47. Nc5 {[%clk
0:00:03.4]} 47... Bd6 {[%clk 0:00:05.1]} 48. Nce6 {[%clk 0:00:03.9]} 48... Be5
{[%clk 0:00:04.9]} 49. Nd4 {[%clk 0:00:04.3]} 49... g3 {[%clk 0:00:04.4]} 50.
Nxf5+ {[%clk 0:00:03.2]} 50... Kf6 {[%clk 0:00:04.3]} 51. Nxg3 {[%clk
0:00:04.1]} 51... Bc7 {[%clk 0:00:03.5]} 52. Kf3 {[%clk 0:00:04.1]} 52... Kf7
{[%clk 0:00:03.2]} 53. Ne4 {[%clk 0:00:04.9]} 53... Bb6 {[%clk 0:00:03.5]} 54.
Ne2 {[%clk 0:00:05.2]} 54... Bd8 {[%clk 0:00:03.1]} 55. Nd6+ {[%clk 0:00:05.4]}
55... Ke6 {[%clk 0:00:02.9]} 56. Nxc4 {[%clk 0:00:06.3]} 56... Bc7 {[%clk
0:00:02.9]} 57. Nd4+ {[%clk 0:00:06.4]} 57... Kd5 {[%clk 0:00:03.1]} 58. Nd2
{[%clk 0:00:06.9]} 58... Kc5 {[%clk 0:00:03.3]} 59. e4 {[%clk 0:00:07.7]} 59...
Kd6 {[%clk 0:00:03.4]} 60. Ke3 {[%clk 0:00:08.1]} 60... Ke5 {[%clk 0:00:03.5]}
61. N2f3+ {[%clk 0:00:08.7]} 61... Kf6 {[%clk 0:00:03.8]} 62. e5+ {[%clk
0:00:09.6]} 62... Bxe5 {[%clk 0:00:03.3]} 63. Nxe5 {[%clk 0:00:10.5]} 1-0

[Event "*** Titled Tuesday Blitz"]
[Site "Chess.com"]
[Date "2020.05.05"]
[Round "1"]
[White "GMKrikor"]
[Black "kingofthenil"]
[Result "0-1"]
[WhiteElo "2863"]
[BlackElo "2463"]
[TimeControl "180+1"]
[EndTime "10:08:21 PDT"]
[Termination "kingofthenil won by resignation"]

1. Nf3 {[%clk 0:02:48]} 1... Nf6 {[%clk 0:02:59.8]} 2. c4 {[%clk 0:02:47.3]}
2... e6 {[%clk 0:02:58.7]} 3. Nc3 {[%clk 0:02:46.6]} 3... d5 {[%clk 0:02:53.5]}
4. e3 {[%clk 0:02:45.7]} 4... Bd6 {[%clk 0:02:49.2]} 5. b3 {[%clk 0:02:44]} 5...
b6 {[%clk 0:02:47.6]} 6. Bb2 {[%clk 0:02:40.4]} 6... Bb7 {[%clk 0:02:46.4]} 7.
Nb5 {[%clk 0:02:37.5]} 7... Be7 {[%clk 0:02:41.6]} 8. Be5 {[%clk 0:02:37.2]}
8... Na6 {[%clk 0:02:25.3]} 9. Rc1 {[%clk 0:02:35.4]} 9... c6 {[%clk 0:02:17.9]}
10. Nbd4 {[%clk 0:02:29.8]} 10... c5 {[%clk 0:02:09.7]} 11. Nb5 {[%clk
0:02:29.2]} 11... O-O {[%clk 0:02:09.7]} 12. Be2 {[%clk 0:02:22.7]} 12... Nb4
{[%clk 0:02:05.4]} 13. a3 {[%clk 0:02:21]} 13... Nc6 {[%clk 0:02:04.7]} 14. Bb2
{[%clk 0:02:17.5]} 14... a6 {[%clk 0:02:02.4]} 15. Nc3 {[%clk 0:02:12.6]} 15...
d4 {[%clk 0:01:58]} 16. Na4 {[%clk 0:02:10.4]} 16... e5 {[%clk 0:01:37.3]} 17.
d3 {[%clk 0:01:35.7]} 17... Bd6 {[%clk 0:00:59.9]} 18. e4 {[%clk 0:01:30.9]}
18... Nd7 {[%clk 0:00:53.6]} 19. Ba1 {[%clk 0:01:27.6]} 19... b5 {[%clk
0:00:51.2]} 20. Nb2 {[%clk 0:01:27.9]} 20... Qa5+ {[%clk 0:00:49.8]} 21. Nd2
{[%clk 0:01:27]} 21... Qxa3 {[%clk 0:00:49.2]} 22. O-O {[%clk 0:01:26.6]} 22...
g6 {[%clk 0:00:36.9]} 23. cxb5 {[%clk 0:01:26.1]} 23... axb5 {[%clk 0:00:36.5]}
24. Ndc4 {[%clk 0:01:26.1]} 24... bxc4 {[%clk 0:00:33.2]} 25. Nxc4 {[%clk
0:01:27]} 25... Qxc1 {[%clk 0:00:19.1]} 26. Qxc1 {[%clk 0:01:24.6]} 26... Bc7
{[%clk 0:00:20]} 27. Bb2 {[%clk 0:00:54.1]} 27... Nb4 {[%clk 0:00:18.9]} 28. Ba3
{[%clk 0:00:50.4]} 28... Na2 {[%clk 0:00:14.7]} 29. Qb2 {[%clk 0:00:37.4]} 29...
Nc3 {[%clk 0:00:15.6]} 30. Bg4 {[%clk 0:00:33.6]} 30... f5 {[%clk 0:00:14.8]}
31. exf5 {[%clk 0:00:31.9]} 31... gxf5 {[%clk 0:00:15.7]} 32. Bh5 {[%clk
0:00:32.2]} 32... Nf6 {[%clk 0:00:16]} 33. Bd1 {[%clk 0:00:29.1]} 33... Nd7
{[%clk 0:00:10.6]} 34. b4 {[%clk 0:00:29.3]} 34... Kh8 {[%clk 0:00:08.5]} 35.
bxc5 {[%clk 0:00:29.7]} 35... Bc6 {[%clk 0:00:09]} 36. Bb3 {[%clk 0:00:20.8]}
36... Rg8 {[%clk 0:00:08.7]} 37. f3 {[%clk 0:00:19.8]} 37... Rab8 {[%clk
0:00:08.9]} 38. Qc2 {[%clk 0:00:19.8]} 38... e4 {[%clk 0:00:08.9]} 39. dxe4
{[%clk 0:00:18.1]} 39... fxe4 {[%clk 0:00:09.8]} 40. Bb2 {[%clk 0:00:18.6]}
40... exf3 {[%clk 0:00:07.2]} 41. g3 {[%clk 0:00:19.3]} 41... Bxg3 {[%clk
0:00:05.1]} 42. hxg3 {[%clk 0:00:03.8]} 42... Rxg3+ {[%clk 0:00:06]} 43. Kf2
{[%clk 0:00:03.9]} 43... Rg2+ {[%clk 0:00:05.3]} 44. Ke1 {[%clk 0:00:03.8]}
44... Re2+ {[%clk 0:00:03.4]} 45. Qxe2 {[%clk 0:00:03.4]} 45... fxe2 {[%clk
0:00:04.3]} 46. Rf7 {[%clk 0:00:02.8]} 46... Rxb3 {[%clk 0:00:04.3]} 47. Bc1
{[%clk 0:00:01.9]} 47... Bd5 {[%clk 0:00:02.6]} 48. Kd2 {[%clk 0:00:02.8]} 48...
Nb1+ {[%clk 0:00:02.2]} 49. Kc2 {[%clk 0:00:02.3]} 49... Bxf7 {[%clk 0:00:03.1]}
50. Nd6 {[%clk 0:00:03.2]} 50... e1=Q {[%clk 0:00:02.8]} 51. Nxf7+ {[%clk
0:00:03]} 51... Kg7 {[%clk 0:00:03.7]} 52. Ne5 {[%clk 0:00:03.6]} 52... Qc3+
{[%clk 0:00:03.8]} 53. Kd1 {[%clk 0:00:03.5]} 53... Nxe5 {[%clk 0:00:04.3]} 54.
Bh6+ {[%clk 0:00:04.4]} 54... Kg6 {[%clk 0:00:04.1]} 55. Ke2 {[%clk 0:00:05.1]}
55... Qd3+ {[%clk 0:00:04.7]} 56. Kf2 {[%clk 0:00:04.8]} 56... Rb2+ {[%clk
0:00:05.6]} 0-1